bitfinex-derivatives/quotes_ETHF0:USTF0_20241022
["timestamp","ask_amount","ask_price","bid_price","bid_amount"]
[1729559754166,0.37915,2638.4,2638.3,2.96]
[1729559754973,1.4205,2638.7,2638.3,2.96]
[1729559755267,1.4205,2638.7,2638.2,2.1435]
[1729559755268,0.3791,2638.7,2638.6,2.96]
[1729559755777,3.2078,2638.8,2638.3,4.90904728]
[1729559755778,3.2078,2638.8,2638.5,2.96]
[1729559756071,0.37912,2638.6,2638.5,2.96]
[1729559758071,0.94773,2638.8,2638.2,0.7525]
[1729559758270,0.94773,2638.8,2638.2,3.7125]
[1729559758271,0.37916,2638.3,2638.2,3.7125]
[1729559759972,0.94773,2638.8,2638.2,12.49339358]
[1729559759973,0.37914,2638.5,2638.2,12.49339358]
[1729559760277,0.37914,2638.5,2638.4,2.96]
[1729559760474,3.2078,2638.8,2638.4,2.96]
[1729559760475,0.37913,2638.6,2638.4,2.96]
[1729559760676,0.37913,2638.6,2638.5,0.6726]
[1729559761074,3.2078,2638.8,2638.5,4.4622]
[1729559761383,0.37907,2639.0,2638.7,2.96]
[1729559761567,3.2078,2639.2,2638.9,0.37907]
[1729559761767,0.37899,2639.5,2639.1,3.33903]
[1729559762076,0.37899,2639.5,2639.4,2.96]
[1729559763068,0.37898,2639.6,2639.4,2.96]
[1729559763273,0.37897,2639.7,2639.4,2.96]
[1729559764072,0.37897,2639.6,2639.4,2.96]
[1729559764272,0.37899,2639.5,2639.4,2.96]
[1729559766485,0.37897,2639.7,2639.4,14.88818651]
[1729559766678,3.2078,2640.0,2639.6,2.96]
[1729559766979,3.2078,2639.7,2639.3,3.6699]
[1729559767185,0.379,2639.4,2639.3,3.6699]
[1729559768075,0.37903,2639.2,2639.1,6.1678]
[1729559769072,0.37906,2639.0,2638.9,3.7126]
[1729559771179,0.37906,2639.0,2638.9,2.96]
[1729559772381,0.37905,2639.1,2638.9,2.96]
[1729559772577,0.37905,2639.1,2639.0,2.96]
[1729559775286,0.37904,2639.2,2639.0,2.96]
[1729559775482,0.37904,2639.2,2639.1,3.6577]
[1729559775881,0.37902,2639.3,2639.1,12.28577324]
[1729559776183,0.37902,2639.3,2639.1,4.3786]
[1729559776380,0.37903,2639.2,2639.1,4.3786]
[1729559776687,3.2078,2639.4,2638.9,2.96]
[1729559776877,0.37906,2639.0,2638.9,2.96]
[1729559777081,0.37909,2638.8,2638.7,40.8]
[1729559777277,0.94762,2639.1,2638.4,3.70513318]
[1729559777278,5.43719,2638.9,2638.4,3.70513318]
[1729559777586,0.37913,2638.5,2638.4,3.2078]
[1729559777786,0.37912,2638.6,2638.5,4.95834009]
[1729559778178,0.37911,2638.7,2638.5,0.6884]
[1729559778384,0.37911,2638.7,2638.6,0.7024]
[1729559778685,0.6999,2638.9,2638.4,44.0078]
[1729559778884,0.37909,2638.8,2638.7,2.96]
[1729559781289,0.6999,2638.9,2638.5,2.96]
[1729559781987,0.37912,2638.6,2638.5,2.96]
[1729559786886,0.37911,2638.7,2638.5,2.96]
[1729559787092,0.37911,2638.7,2638.6,3.6519]
[1729559787289,0.6999,2638.9,2638.6,3.6519]
[1729559787290,0.3791,2638.8,2638.6,3.6519]
[1729559787489,0.6999,2638.9,2638.6,3.6519]
[1729559787688,0.37908,2638.9,2638.8,2.96]
[1729559791894,3.2078,2639.1,2638.7,0.7047]
[1729559792089,0.37909,2638.8,2638.7,0.7047]
[1729559793088,3.2078,2639.1,2638.6,4.3384]
[1729559793089,3.2078,2639.1,2638.6,2.96]
[1729559793288,1.0605,2638.7,2638.6,2.96]
[1729559793794,0.3791,2638.7,2638.6,2.96]
[1729559800597,0.3791,2638.7,2638.6,3.6698]
[1729559801297,3.2078,2639.1,2638.6,3.6698]
[1729559801501,0.3791,2638.7,2638.6,3.6698]
[1729559801797,0.3791,2638.7,2638.6,2.96]
[1729559804593,3.9105,2639.1,2638.4,47.6899]
[1729559804905,3.9105,2639.1,2636.6,2.25279046]
[1729559804906,0.37919,2638.1,2638.0,6.1678]
[1729559805596,0.37919,2638.1,2638.0,3.2078]
[1729559805597,4.16959,2638.1,2638.0,3.2078]
[1729559806100,0.37918,2638.2,2638.0,6.1678]
[1729559806503,0.7402,2638.3,2638.0,6.1678]
[1729559806704,0.37919,2638.1,2638.0,6.1678]
[1729559807003,0.7402,2638.3,2638.0,6.1678]
[1729559807207,0.37917,2638.2,2638.0,3.2078]
[1729559807398,1.11936,2638.3,2638.2,2.96]
[1729559809311,0.37919,2638.1,2638.0,2.96]
[1729559816201,3.2078,2638.5,2638.0,2.96]
[1729559816202,0.37918,2638.2,2638.0,2.96]
[1729559816606,3.2078,2638.5,2638.0,2.96]
[1729559816905,3.2078,2638.5,2638.2,2.96]
[1729559817114,0.37915,2638.4,2638.3,0.7069]
[1729559819309,3.7904,2638.4,2637.8,2.96]
[1729559819608,0.37922,2637.9,2637.8,2.96]
[1729559820810,0.37922,2637.9,2637.8,3.6979]
[1729559822320,0.37918,2638.2,2637.8,12.44947081]
[1729559822520,3.2078,2638.5,2638.1,2.96]
[1729559822810,3.58694,2638.5,2638.4,2.96]
[1729559823010,3.2078,2638.5,2638.4,2.96]
[1729559823212,0.37911,2638.7,2638.4,2.96]
[1729559823415,0.37911,2638.7,2638.6,2.96]
[1729559823910,1.4491,2639.0,2638.6,2.96]
[1729559824218,0.37909,2638.8,2638.7,1.3925]
[1729559824719,0.37908,2638.9,2638.7,1.3925]
[1729559824912,0.37908,2638.9,2638.8,3.6835]
[1729559825307,0.37909,2638.8,2638.7,0.6976]
[1729559825511,4.15542,2639.1,2638.4,0.99255062]
[1729559825512,1.4001,2639.0,2638.4,0.7235]
[1729559825816,0.37912,2638.6,2638.5,3.6576]
[1729559826003,1.4001,2639.0,2638.5,3.6576]
[1729559826204,0.37911,2638.7,2638.5,3.6576]
[1729559826614,3.2078,2640.1,2639.7,0.37895]
[1729559826805,0.6942,2640.6,2640.0,2.96]
[1729559827013,1.07304,2640.6,2640.5,2.96]
[1729559828318,4.86024,2640.6,2640.5,2.96]
[1729559830210,3.2078,2642.3,2640.6,4.73427]
[1729559830410,0.37859,2642.3,2642.2,2.96]
[1729559830615,4.16339,2642.3,2642.2,2.96]
[1729559830810,4.16339,2642.3,2641.6,3.40125283]
[1729559830811,0.37861,2642.1,2642.0,2.96]
[1729559831012,0.37861,2642.1,2641.6,44.0078]
[1729559831013,0.37867,2641.7,2641.6,2.96]
[1729559831516,4.16427,2641.7,2641.6,2.96]
[1729559832909,0.3787,2641.5,2641.4,2.96]
[1729559833322,4.1643,2641.5,2641.4,2.96]
[1729559834319,4.1643,2641.5,2641.3,3.2078]
[1729559834320,0.37871,2641.4,2641.3,3.2078]
[1729559834520,4.16431,2641.4,2641.3,3.2078]
[1729559834818,0.37874,2641.2,2641.1,2.96]
[1729559835015,0.37874,2641.2,2641.1,6.1678]
[1729559835216,4.16514,2641.2,2641.1,6.1678]
[1729559839016,4.16514,2641.2,2641.1,3.2078]
[1729559839328,0.37877,2641.0,2640.9,2.96]
[1729559839722,4.16517,2641.0,2640.9,2.96]
[1729559839918,4.88297,2641.0,2640.9,2.96]
[1729559842821,7.712,2641.0,2640.5,6.1678]
[1729559843028,3.9256,2641.0,2640.7,2.96]
[1729559843220,0.3788,2640.8,2640.7,2.96]
[1729559846329,0.37879,2640.9,2640.7,2.96]
[1729559846529,0.37879,2640.9,2640.8,2.96]
[1729559847131,0.3787,2641.5,2641.0,0.37877]
[1729559847334,0.3787,2641.5,2641.4,2.96]
[1729559850129,3.7856,2641.5,2641.2,2.96]
[1729559850330,0.37876,2641.1,2641.0,2.96]
[1729559851826,0.37879,2640.9,2640.8,2.96]
[1729559862735,0.37879,2640.9,2640.8,7.78566966]
[1729559864640,4.6854,2641.7,2640.8,7.78566966]
[1729559864831,4.6854,2641.7,2641.1,2.96]
[1729559865030,0.37874,2641.2,2641.1,2.96]
[1729559869741,4.6854,2641.7,2641.1,2.96]
[1729559869938,0.37874,2641.2,2641.1,2.96]
[1729559871748,0.37874,2641.3,2641.1,12.14361699]
[1729559871942,4.6854,2641.7,2641.2,6.1678]
[1729559872247,5.06407,2641.7,2641.6,2.96]
[1729559872944,0.37869,2641.6,2641.5,0.96770874]
[1729559873344,0.3787,2641.5,2641.4,0.96770874]
[1729559878138,4.1643,2641.5,2641.4,0.96770874]
[1729559879648,0.37874,2641.2,2641.1,3.6938]
[1729559880841,0.37874,2641.2,2641.1,2.96]
[1729559882752,4.16514,2641.2,2641.1,2.96]
[1729559883047,0.37874,2641.2,2641.1,2.96]
[1729559883954,3.2078,2641.8,2641.3,0.37872]
[1729559883955,0.37869,2641.6,2641.3,0.37872]
[1729559884253,0.37869,2641.6,2641.5,2.96]
[1729559885051,0.37869,2641.6,2641.5,43.76]
[1729559885253,0.37869,2641.6,2641.5,44.5162]
[1729559886058,0.37869,2641.6,2641.5,3.7162]
[1729559887254,0.37868,2641.7,2641.5,3.7162]
[1729559887459,0.37868,2641.7,2641.6,2.96]
[1729559887961,0.37866,2641.8,2641.6,3.33869]
[1729559888147,0.37866,2641.8,2641.7,3.2078]
[1729559888547,4.16426,2641.8,2641.7,3.2078]
[1729559890163,1.3954,2642.3,2641.8,0.37865]
[1729559890363,0.37864,2642.0,2641.8,0.37865]
[1729559890660,0.37864,2642.0,2641.9,3.664]
[1729559892271,0.37864,2642.0,2641.9,2.96]
[1729559892569,0.37866,2641.8,2641.7,6.1678]
[1729559893171,0.37866,2641.8,2641.7,2.96]
[1729559893357,1.77726,2641.8,2641.7,2.96]
[1729559894167,1.08936,2641.8,2641.7,2.96]
[1729559894360,0.37866,2641.8,2641.7,2.96]
[1729559895660,4.16426,2641.8,2641.7,2.96]
[1729559896963,0.37866,2641.8,2641.7,2.96]
[1729559898368,4.16426,2641.8,2641.7,2.96]
[1729559899270,4.16426,2641.8,2641.5,2.96]
[1729559899271,0.37867,2641.7,2641.5,2.96]
[1729559899573,1.12709,2641.6,2641.5,2.96]
[1729559899964,4.15434,2642.2,2641.5,2.96]
[1729559900163,0.37864,2641.9,2641.8,2.96]
[1729559900561,0.37867,2641.7,2641.6,2.96]
[1729559903169,0.37867,2641.8,2641.6,8.15101219]
[1729559903369,0.37867,2641.8,2641.7,6.918]
[1729559903766,0.37867,2641.8,2641.7,7.6493]
[1729559903962,0.7484,2642.1,2641.8,0.37865]
[1729559904168,0.37862,2642.1,2642.0,2.96]
[1729559904368,0.37862,2642.1,2642.0,6.1678]
[1729559904870,1.472,2642.4,2642.0,6.54643]
[1729559905071,0.7424,2642.4,2642.3,2.96]
[1729559905272,1.85597,2642.4,2642.3,2.96]
[1729559905575,5.64077,2642.4,2642.3,2.96]
[1729559908467,4.16337,2642.4,2642.3,2.96]
[1729559908673,9.03332,2643.2,2642.3,2.96]
[1729559908674,0.37835,2644.0,2643.2,0.37845]
[1729559908972,0.37835,2644.0,2643.9,2.96]
[1729559908973,0.37834,2644.0,2643.9,2.96]
[1729559909278,1.11764,2644.0,2643.9,2.96]
[1729559910177,0.37834,2644.0,2643.9,2.96]
[1729559913175,0.37834,2644.0,2643.9,5.97683]
[1729559914770,0.37834,2644.0,2643.9,2.96]
[1729559915177,0.94561,2644.7,2644.2,3.01683]
[1729559915371,0.94561,2644.7,2644.6,2.96]
[1729559915372,0.37824,2644.7,2644.6,2.96]
[1729559915773,4.15984,2644.7,2644.6,2.96]
[1729559917077,0.37824,2644.7,2644.6,2.96]
[1729559917281,0.37827,2644.5,2644.4,2.96]
[1729559917575,0.37827,2644.5,2644.4,5.97683]
[1729559917785,0.37827,2644.5,2644.4,3.01683]
[1729559917973,1.32383,2644.8,2644.4,2.96]
[1729559918172,0.37827,2644.5,2644.4,2.96]
[1729559919977,6.9894,2644.5,2643.9,3.2078]
[1729559920179,0.37834,2644.0,2643.9,6.22463]
[1729559920379,0.37834,2644.0,2643.9,9.18463]
[1729559924374,4.15345,2644.6,2643.9,9.37318425]
[1729559924586,3.58606,2644.6,2644.5,3.01683]
[1729559924788,0.94572,2644.4,2643.6,6.1678]
[1729559924984,3.7816,2644.5,2643.6,6.1678]
[1729559924985,0.6616,2644.3,2644.0,5.97683]
[1729559925190,0.37833,2644.1,2644.0,5.97683]
[1729559926585,4.15346,2644.6,2644.0,10.92376849]
[1729559926883,0.37827,2644.5,2644.4,3.01683]
[1729559934381,3.2078,2644.6,2644.0,2.96]
[1729559934582,0.37833,2644.1,2644.0,6.1678]
[1729559934800,0.648,2644.4,2644.0,5.97683]
[1729559935098,0.37833,2644.1,2644.0,2.96]
[1729559935495,0.37833,2644.1,2644.0,5.97683]
[1729559935796,0.37833,2644.1,2644.0,6.22463]
[1729559939601,0.37833,2644.1,2644.0,11.19709527]
[1729559941205,1.2457,2644.5,2643.8,2.12013623]
[1729559941206,0.37836,2643.9,2643.8,0.6299]
[1729559941497,0.37836,2643.9,2643.8,3.01683]
[1729559942096,0.98006,2643.9,2643.8,3.01683]
[1729559942297,0.6017,2643.9,2643.7,3.2078]
[1729559942601,0.37837,2643.8,2643.7,5.43233]
[1729559943492,0.37837,2643.8,2643.7,8.39233]
[1729559944601,0.37837,2643.8,2643.7,5.18453]
[1729559944994,0.6017,2643.9,2643.4,2.96]
[1729559945193,0.37843,2643.4,2643.3,5.43233]
[1729559947500,0.37843,2643.4,2643.3,6.08293]
[1729559949904,0.37851,2642.8,2642.3,1.46672383]
[1729559950211,0.37851,2642.8,2641.4,3.30042913]
[1729559950212,0.37867,2641.7,2641.6,6.7617]
[1729559950403,0.3786,2642.2,2641.6,6.7617]
[1729559950600,0.37857,2642.4,2642.3,2.22453]
[1729559956814,0.37857,2642.4,2642.3,1.43849]
[1729559956815,3.58637,2642.4,2642.3,1.43849]
[1729559958027,0.37857,2642.4,2642.3,1.43849]
[1729559962631,0.37857,2642.5,2642.3,7.01892349]
[1729559962930,0.37857,2642.5,2642.3,5.58043349]
[1729559963132,0.37857,2642.5,2642.4,1.43849]
[1729559963327,0.37856,2642.5,2642.4,45.19849]
[1729559963524,0.37856,2642.5,2642.4,50.07042437]
[1729559963935,3.7848,2642.4,2640.8,1.94781275]
[1729559964139,3.7848,2642.4,2640.7,0.19104009]
[1729559964140,3.2078,2641.1,2640.7,0.19104009]
[1729559964324,3.2078,2641.1,2640.9,4.86312965]
[1729559964635,3.58652,2641.4,2641.0,3.33877]
[1729559964829,3.2078,2641.4,2641.0,3.33877]
[1729559965131,3.2078,2641.4,2641.0,11.57087369]
[1729559965330,3.58652,2641.4,2641.0,11.94964369]
[1729559965534,3.58653,2641.4,2641.0,13.26487369]
[1729559965835,3.58653,2641.4,2641.0,13.45449671]
[1729559966031,3.58653,2641.4,2641.0,9.66809671]
[1729559966528,3.2078,2641.4,2641.0,9.66809671]
[1729559966730,3.58652,2641.4,2641.0,9.66809671]
[1729559966934,0.37874,2641.3,2641.0,9.66809671]
[1729559967436,0.37874,2641.3,2641.1,3.7864]
[1729559967628,0.37874,2641.3,2641.2,3.7864]
[1729559967825,0.37872,2641.4,2641.2,4.87692038]
[1729559968131,3.2078,2641.5,2641.1,4.87692038]
[1729559968331,0.37871,2641.4,2641.3,40.8]
[1729559968635,0.37871,2641.4,2641.3,45.67692038]
[1729559968939,0.37871,2641.4,2641.3,45.73200298]
[1729559971429,0.37871,2641.4,2641.3,40.8]
[1729559971633,0.6209,2641.4,2641.0,0.5852]
[1729559971845,0.37876,2641.1,2641.0,0.5852]
[1729559972135,0.37876,2641.1,2640.5,0.37883]
[1729559972136,3.2078,2641.2,2640.4,2.96]
[1729559972340,3.2078,2641.2,2640.6,2.96]
[1729559972540,3.2078,2641.2,2640.8,2.96]
[1729559972932,3.2078,2641.2,2640.9,6.06923241]
[1729559972933,0.37876,2641.1,2640.9,6.06923241]
[1729559973133,0.37877,2641.0,2640.9,7.76323241]
[1729559973344,0.37876,2641.1,2640.9,11.54963241]
[1729559973533,0.37876,2641.1,2640.9,7.76323241]
[1729559973740,0.37876,2641.1,2641.0,3.7864]
[1729559974037,0.37876,2641.1,2641.0,9.40565782]
[1729559974232,3.2078,2641.2,2641.0,12.36565782]
[1729559974542,0.37873,2641.3,2641.0,8.95801782]
[1729559975130,0.37872,2641.4,2641.1,3.7864]
[1729559975335,0.37874,2641.3,2641.0,8.57925782]
[1729559975534,0.37874,2641.3,2641.2,4.83301614]
[1729559975842,0.37874,2641.3,2641.2,3.7864]
[1729559976142,0.37874,2641.3,2641.2,8.67456263]
[1729559980447,0.37872,2641.4,2641.2,11.63456263]
[1729559980639,0.37873,2641.3,2641.2,7.84816263]
[1729559980943,3.2078,2641.5,2641.2,11.63456263]
[1729559981136,0.37871,2641.4,2641.2,7.84816263]
[1729559982141,3.2078,2641.5,2641.2,7.84816263]
[1729559982545,0.3787,2641.6,2641.2,7.84816263]
[1729559982546,3.2078,2641.8,2641.4,2.96]
[1729559982747,3.2078,2641.8,2641.7,2.96]
[1729559982945,0.37864,2642.0,2641.7,5.03266]
[1729559983142,0.37861,2642.1,2641.8,41.4343]
[1729559983338,0.6528,2642.2,2641.8,41.4343]
[1729559983641,0.37864,2642.0,2641.9,4.9649065]
[1729559988052,0.37864,2642.0,2641.9,7.9249065]
[1729559991251,0.6528,2642.2,2641.9,11.7097065]
[1729559991445,0.6528,2642.2,2642.1,2.96]
[1729559991847,0.6528,2642.2,2642.1,52.56265004]
[1729559992241,0.6528,2642.2,2642.1,52.75666535]
[1729559992443,0.6528,2642.2,2642.1,53.13527535]
[1729559992850,0.37859,2642.3,2642.1,53.13527535]
[1729559993949,1.2141,2642.6,2642.1,52.75666535]
[1729559994141,0.37859,2642.3,2642.1,49.35047535]
[1729559994544,3.2078,2643.0,2642.2,13.45739639]
[1729559994744,3.2078,2643.0,2642.9,2.96]
[1729559995147,3.2078,2643.0,2642.9,8.30984824]
[1729559995347,0.6174,2643.1,2643.0,0.37849]
[1729559995849,0.6174,2643.1,2643.0,5.34983824]
[1729559996044,0.6174,2643.1,2643.0,8.55763824]
[1729559996246,0.98953,2643.4,2643.0,11.96234824]
[1729559996450,0.6111,2643.4,2643.2,2.96]
[1729559996842,0.6111,2643.4,2643.3,5.00099458]
[1729559997050,0.6111,2643.4,2643.3,5.37943458]
[1729559997345,0.651,2643.5,2643.4,0.37843]
[1729559997654,0.651,2643.5,2643.4,8.36943019]
[1729559997950,0.651,2643.5,2643.4,12.15263019]
[1729559998151,0.6551,2643.7,2643.6,0.3784]
[1729559998547,0.6551,2643.7,2643.6,3.3384]
[1729559998848,0.6551,2643.7,2643.6,2.96]
[1729559999854,0.6551,2643.7,2643.6,3.3384]
[1729560000053,3.2078,2643.9,2643.6,13.44745761]
[1729560000246,3.2078,2643.9,2643.8,3.33837]
[1729560000647,1.2845,2644.3,2643.8,14.72245761]
[1729560000852,1.2845,2644.3,2644.2,2.96]
[1729560001063,1.2845,2644.3,2644.1,2.96]
[1729560001351,1.6628,2644.3,2644.2,45.61519865]
[1729560001550,1.6628,2644.3,2644.2,40.8]
[1729560002149,0.37834,2644.1,2643.9,2.96]
[1729560002347,0.37834,2644.0,2643.9,2.96]
[1729560002761,3.2078,2644.1,2643.5,0.19352272]
[1729560002942,3.2078,2644.1,2643.7,2.96]
[1729560003153,0.37835,2644.0,2643.9,2.96]
[1729560003454,3.2078,2644.1,2643.7,2.96]
[1729560003760,0.37835,2644.0,2643.9,2.96]
[1729560003953,3.2078,2644.1,2643.9,2.96]
[1729560004153,3.2078,2644.1,2644.0,4.95353651]
[1729560004353,1.2845,2644.3,2644.0,3.7824]
[1729560004556,1.2845,2644.3,2644.2,0.37831]
[1729560004756,0.6319,2644.3,2644.2,0.37831]
[1729560004956,0.6319,2644.3,2644.2,5.25768234]
[1729560005250,3.2078,2644.6,2644.2,10.34597234]
[1729560005459,3.58607,2644.6,2644.5,2.96]
[1729560006067,3.2078,2644.6,2644.5,2.96]
[1729560007260,0.37827,2644.5,2644.4,2.96]
[1729560007559,0.602,2644.5,2644.4,7.81905329]
[1729560007866,0.602,2644.5,2644.4,3.33828]
[1729560008162,0.602,2644.5,2644.4,8.14712649]
[1729560008555,3.2078,2644.6,2644.4,11.92872649]
[1729560008752,3.2078,2644.6,2644.5,2.96]
[1729560010669,3.58606,2644.6,2644.5,2.96]
[1729560011267,3.2078,2644.6,2644.5,2.96]
[1729560013955,3.2078,2644.6,2644.5,3.33827]
[1729560014155,3.2078,2644.6,2644.5,8.21898616]
[1729560014357,3.2078,2644.6,2644.5,12.00058616]
[1729560014860,0.6246,2645.3,2644.5,11.62231616]
[1729560015055,5.12611,2646.1,2645.2,2.96]
[1729560015056,1.65595,2645.4,2645.2,2.96]
[1729560015260,1.65595,2645.4,2645.2,3.15172757]
[1729560015473,1.65595,2645.4,2645.3,4.86629571]
[1729560015665,1.2778,2645.4,2645.3,4.86629571]
[1729560016170,0.6492,2645.4,2645.3,4.86629571]
[1729560016959,0.37812,2645.6,2645.3,9.02445571]
[1729560017259,0.6229,2645.7,2645.5,3.33813]
[1729560017465,0.6229,2645.7,2645.6,2.96]
[1729560017662,0.6229,2645.7,2645.6,7.78580714]
[1729560018258,4.781,2645.7,2645.6,4.82580714]
[1729560018465,0.37813,2645.5,2645.4,2.96]
[1729560018868,0.37813,2645.5,2645.4,7.79092798]
[1729560019465,0.6229,2645.7,2645.4,7.79092798]
[1729560019774,0.6229,2645.7,2645.6,2.96]
[1729560019775,1.001,2645.7,2645.6,2.96]
[1729560020767,0.37813,2645.5,2645.4,2.96]
[1729560021170,0.37813,2645.5,2645.4,7.78709424]
[1729560023471,3.2078,2645.9,2645.4,7.78709424]
[1729560023472,0.37811,2645.7,2645.4,7.78709424]
[1729560023670,3.58587,2645.9,2645.8,2.96]
[1729560024963,3.58587,2645.9,2645.3,4.636]
[1729560024964,6.987,2645.9,2645.3,4.636]
[1729560025169,0.37814,2645.4,2645.3,4.636]
[1729560025571,0.37814,2645.4,2645.3,9.57127007]
[1729560025780,0.37814,2645.4,2645.3,7.89527007]
[1729560026076,0.37814,2645.4,2645.3,2.96]
[1729560028872,1.2375,2645.5,2645.3,2.96]
[1729560029074,0.37812,2645.6,2645.3,8.1467763]
[1729560029273,1.2143,2645.9,2645.5,6.1678]
[1729560029483,1.2143,2645.9,2645.7,2.96]
[1729560029484,0.37809,2645.8,2645.7,2.96]
[1729560031281,4.15809,2645.8,2645.7,2.96]
[1729560031475,4.15809,2645.8,2645.4,0.6214]
[1729560031476,3.78,2645.8,2645.3,2.96]
[1729560031676,0.37814,2645.4,2645.3,2.96]
[1729560033384,3.66877436,2645.7,2645.3,2.96]
[1729560033572,0.37814,2645.4,2645.3,2.96]
[1729560035883,0.37817,2645.2,2645.1,2.96]
[1729560036092,0.37818,2645.1,2645.0,40.8]
[1729560036983,1.2867,2645.3,2645.0,40.8]
[1729560037179,1.66487,2645.3,2645.1,2.96]
[1729560037482,3.2078,2645.7,2645.2,4.94712755]
[1729560037483,1.2464,2645.6,2645.2,4.94712755]
[1729560037681,0.37813,2645.5,2645.4,2.96]
[1729560038786,0.37813,2645.5,2645.4,7.96010945]
[1729560038987,0.37813,2645.5,2645.4,9.3936406]
[1729560039189,0.37813,2645.5,2645.4,9.41464746]
[1729560039384,0.37812,2645.6,2645.4,11.22838348]
[1729560039586,3.2078,2646.0,2645.5,7.14459441]
[1729560039883,0.37807,2645.9,2645.8,2.96]
[1729560040484,0.37807,2645.9,2645.8,4.39776565]
[1729560040876,0.37807,2645.9,2645.8,5.85896404]
[1729560041274,0.37807,2645.9,2645.8,4.39776565]
[1729560041474,0.37807,2645.9,2645.8,5.8619405]
[1729560042485,0.37807,2645.9,2645.8,4.39776565]
[1729560042786,0.37807,2645.9,2645.8,5.8619405]
[1729560043085,0.37807,2645.9,2645.8,2.96]
[1729560051279,0.37807,2645.9,2645.5,1.9463]
[1729560051280,0.3781,2645.7,2645.6,2.96]
[1729560051690,0.3781,2645.7,2645.6,7.91692459]
[1729560055090,0.6328,2646.2,2645.6,7.91692459]
[1729560055091,0.37809,2645.8,2645.6,7.91692459]
[1729560055500,0.3781,2645.7,2645.6,7.91692459]
[1729560057495,0.6328,2646.2,2645.6,7.91692459]
[1729560057801,0.3781,2645.7,2645.6,7.91692459]
[1729560059189,0.37809,2645.8,2645.6,7.91692459]
[1729560059396,0.37809,2645.8,2645.7,2.96]
[1729560061397,0.94526,2645.7,2644.8,0.18927182]
[1729560061595,0.37818,2645.2,2644.9,1.3139]
[1729560061895,0.37818,2645.2,2645.1,43.87824498]
[1729560062096,4.15898,2645.2,2645.1,43.76]
[1729560062297,4.15898,2645.2,2645.1,2.96]
[1729560062496,3.2078,2645.4,2644.9,3.6217]
[1729560062795,1.3298,2645.1,2644.9,43.76]
[1729560063003,1.708,2645.1,2645.0,7.95670728]
[1729560063303,0.3782,2645.1,2645.0,7.95670728]
[1729560063489,0.3782,2645.1,2645.0,8.57390728]
[1729560063797,0.6636,2645.6,2645.0,15.6807513]
[1729560064093,3.2078,2645.9,2645.5,2.96]
[1729560064290,3.58587,2645.9,2645.8,2.96]
[1729560066689,0.37811,2645.6,2645.5,2.96]
[1729560067305,0.6523,2645.8,2645.5,2.96]
[1729560067604,0.6523,2645.8,2645.4,1.2496]
[1729560067605,1.0304,2645.8,2645.7,2.96]
[1729560067901,1.0304,2645.8,2645.3,3.5724]
[1729560067902,0.37814,2645.4,2645.3,3.5724]
[1729560068599,0.6523,2645.8,2645.3,3.5724]
[1729560068796,0.37814,2645.5,2645.3,3.5724]
[1729560068990,0.6523,2645.8,2645.4,4.82602277]
[1729560068991,0.37812,2645.6,2645.4,4.82602277]
[1729560069301,0.6523,2645.8,2645.5,2.96]
[1729560069501,0.37811,2645.7,2645.5,3.33813]
[1729560070096,0.37811,2645.6,2645.5,2.96]
[1729560070498,0.37809,2645.8,2645.5,3.33812]
[1729560070806,0.3781,2645.8,2645.6,0.6268]
[1729560071193,0.94518,2645.9,2645.5,0.97632797]
[1729560071393,0.37816,2645.3,2645.1,4.51412797]
[1729560072497,0.6144,2645.6,2645.1,3.5378]
[1729560072498,0.37817,2645.2,2645.1,3.5378]
[1729560072697,0.37817,2645.2,2645.1,2.96]
[1729560073002,0.3782,2645.0,2644.9,44.73632797]
[1729560073204,0.3782,2645.0,2644.9,2.96]
[1729560073606,1.6022,2645.0,2644.9,2.96]
[1729560073805,5.0048,2645.0,2644.5,3.93632797]
[1729560074101,0.37826,2644.6,2644.4,40.8]
[1729560074698,3.2078,2644.9,2644.4,40.8]
[1729560074699,0.37827,2644.5,2644.4,40.8]
[1729560075900,3.2078,2644.9,2644.4,45.64415498]
[1729560076102,0.37821,2644.9,2644.7,2.96]
[1729560076303,1.224,2645.0,2644.7,2.96]
[1729560076304,0.37823,2644.8,2644.7,2.96]
[1729560076903,0.37822,2644.9,2644.7,2.96]
[1729560077097,0.3782,2645.0,2644.9,2.96]
[1729560077497,0.6144,2645.1,2644.9,3.3382]
[1729560077698,0.6079,2645.2,2645.0,2.96]
[1729560077894,0.6079,2645.2,2645.1,1.2057]
[1729560078107,0.5769,2645.5,2645.1,1.2057]
[1729560078307,1.1848,2645.5,2645.1,1.2057]
[1729560078509,0.37817,2645.3,2645.1,1.2057]
[1729560078905,0.37816,2645.3,2645.1,1.2057]
[1729560080610,0.37817,2645.3,2645.1,1.2057]
[1729560081305,0.37817,2645.2,2645.1,1.2057]
[1729560083104,0.37816,2645.3,2645.1,1.2057]
[1729560083608,0.37817,2645.2,2645.1,1.2057]
[1729560084006,1.1848,2645.5,2645.1,1.2057]
[1729560084198,0.37817,2645.2,2645.1,1.2057]
[1729560084403,1.1848,2645.5,2645.0,2.96]
[1729560084601,1.1848,2645.5,2644.9,3.2078]
[1729560084799,3.2078,2645.2,2644.6,7.14412797]
[1729560085009,0.37824,2644.7,2644.6,3.2078]